[Event "Early-Titled-Tuesday-Blitz-February-20-2024"]
[Site "Chess.com"]
[Date "2024.02.20"]
[Round "1"]
[White "ansko1999"]
[Black "Al_Shima"]
[Result "0-1"]
[WhiteElo "2688"]
[BlackElo "2389"]
[TimeControl "180+1"]
[EndTime "8:09:22 PST"]
[Termination "Al_Shima won by checkmate"]

1. Nf3 {[%clk 0:03:00.9]} 1... d5 {[%clk 0:02:57.5]} 2. e3 {[%clk 0:02:59.6]}
2... c5 {[%clk 0:02:56.7]} 3. b3 {[%clk 0:02:58.4]} 3... Nc6 {[%clk 0:02:55.5]}
4. Bb2 {[%clk 0:02:57.1]} 4... a6 {[%clk 0:02:56]} 5. d4 {[%clk 0:02:53.9]} 5...
cxd4 {[%clk 0:02:56.1]} 6. Nxd4 {[%clk 0:02:52.3]} 6... Nf6 {[%clk 0:02:55.4]}
7. Nd2 {[%clk 0:02:44.8]} 7... e5 {[%clk 0:02:53.6]} 8. Nxc6 {[%clk 0:02:44.5]}
8... bxc6 {[%clk 0:02:54.5]} 9. Bxe5 {[%clk 0:02:41.1]} 9... Bb4 {[%clk
0:02:53.4]} 10. c3 {[%clk 0:02:40.2]} 10... Ba5 {[%clk 0:02:53.1]} 11. b4 {[%clk
0:02:39.9]} 11... Bb6 {[%clk 0:02:53.4]} 12. Bd4 {[%clk 0:02:37]} 12... O-O
{[%clk 0:02:52]} 13. Bd3 {[%clk 0:02:35.6]} 13... a5 {[%clk 0:02:47.4]} 14. a3
{[%clk 0:02:28.9]} 14... Re8 {[%clk 0:02:25.7]} 15. Bxb6 {[%clk 0:02:05.5]}
15... Qxb6 {[%clk 0:02:24.6]} 16. O-O {[%clk 0:02:03.3]} 16... Bg4 {[%clk
0:02:03.1]} 17. Qc2 {[%clk 0:01:56.1]} 17... h6 {[%clk 0:02:02.2]} 18. h3 {[%clk
0:01:55.7]} 18... Bd7 {[%clk 0:02:00.6]} 19. Nb3 {[%clk 0:01:49]} 19... axb4
{[%clk 0:01:52.1]} 20. axb4 {[%clk 0:01:48.9]} 20... Qc7 {[%clk 0:01:42.1]} 21.
Nc5 {[%clk 0:01:41.1]} 21... Qe5 {[%clk 0:01:41.1]} 22. b5 {[%clk 0:00:56]}
22... Rac8 {[%clk 0:01:20]} 23. b6 {[%clk 0:00:48.2]} 23... Qg5 {[%clk
0:01:14.8]} 24. Nxd7 {[%clk 0:00:45]} 24... Nxd7 {[%clk 0:01:15]} 25. Bf5 {[%clk
0:00:43.8]} 25... Nxb6 {[%clk 0:01:09.1]} 26. Bxc8 {[%clk 0:00:43.6]} 26... Rxc8
{[%clk 0:01:10]} 27. e4 {[%clk 0:00:35.6]} 27... Nc4 {[%clk 0:01:06.5]} 28. exd5
{[%clk 0:00:22.6]} 28... cxd5 {[%clk 0:01:06.2]} 29. Rfd1 {[%clk 0:00:23]} 29...
Ne5 {[%clk 0:00:45.7]} 30. Kh1 {[%clk 0:00:20.4]} 30... Nc4 {[%clk 0:00:46]} 31.
Qd3 {[%clk 0:00:19.2]} 31... Nb2 {[%clk 0:00:46.4]} 32. Qa6 {[%clk 0:00:15.7]}
32... Rd8 {[%clk 0:00:36.6]} 33. Re1 {[%clk 0:00:09.8]} 33... Qf5 {[%clk
0:00:29.7]} 34. Kg1 {[%clk 0:00:08.6]} 34... Nd3 {[%clk 0:00:27.8]} 35. Re2
{[%clk 0:00:08.6]} 35... Nf4 {[%clk 0:00:28.1]} 36. Re3 {[%clk 0:00:08.4]} 36...
h5 {[%clk 0:00:27.4]} 37. Rf3 {[%clk 0:00:07.6]} 37... h4 {[%clk 0:00:21.4]} 38.
Qb6 {[%clk 0:00:05.7]} 38... Rc8 {[%clk 0:00:17.5]} 39. Rd1 {[%clk 0:00:03.7]}
39... Qg5 {[%clk 0:00:13.5]} 40. Rxf4 {[%clk 0:00:02.4]} 40... Qxf4 {[%clk
0:00:12.8]} 41. Qd4 {[%clk 0:00:01.1]} 41... Qxd4 {[%clk 0:00:11.5]} 42. Rxd4
{[%clk 0:00:02]} 42... Rxc3 {[%clk 0:00:10.7]} 43. Rxd5 {[%clk 0:00:02.3]} 43...
Rc4 {[%clk 0:00:10.4]} 44. Rh5 {[%clk 0:00:02.2]} 44... g6 {[%clk 0:00:09.8]}
45. Ra5 {[%clk 0:00:02.5]} 45... Kg7 {[%clk 0:00:10.1]} 46. f3 {[%clk
0:00:02.8]} 46... Rc1+ {[%clk 0:00:06]} 47. Kf2 {[%clk 0:00:03.2]} 47... Rc2+
{[%clk 0:00:06.4]} 48. Kg1 {[%clk 0:00:03.7]} 48... Rc1+ {[%clk 0:00:07]} 49.
Kh2 {[%clk 0:00:04.4]} 49... Rc4 {[%clk 0:00:07.7]} 50. Rd5 {[%clk 0:00:04.3]}
50... Kf6 {[%clk 0:00:07.8]} 51. Rd6+ {[%clk 0:00:04.8]} 51... Kg7 {[%clk
0:00:08.2]} 52. Rd7 {[%clk 0:00:04.7]} 52... Kf6 {[%clk 0:00:08.7]} 53. Kg1
{[%clk 0:00:04.5]} 53... Rc1+ {[%clk 0:00:08.6]} 54. Kf2 {[%clk 0:00:05.1]}
54... Rc2+ {[%clk 0:00:09.2]} 55. Kf1 {[%clk 0:00:05.7]} 55... Rc1+ {[%clk
0:00:09.7]} 56. Ke2 {[%clk 0:00:05.1]} 56... Rc2+ {[%clk 0:00:09.7]} 57. Kf1
{[%clk 0:00:05.1]} 57... Rc1+ {[%clk 0:00:10.1]} 58. Kf2 {[%clk 0:00:05.3]}
58... Rc2+ {[%clk 0:00:10.7]} 59. Kg1 {[%clk 0:00:05.7]} 59... Rc1+ {[%clk
0:00:11.3]} 60. Kh2 {[%clk 0:00:06.4]} 60... Rc4 {[%clk 0:00:11.7]} 61. Rd2
{[%clk 0:00:06.8]} 61... Kg7 {[%clk 0:00:12]} 62. Kg1 {[%clk 0:00:07.4]} 62...
Kf6 {[%clk 0:00:12.5]} 63. Kf2 {[%clk 0:00:08]} 63... Kg7 {[%clk 0:00:12.9]} 64.
Ke3 {[%clk 0:00:08.5]} 64... Rc3+ {[%clk 0:00:12.5]} 65. Ke4 {[%clk 0:00:07.8]}
65... Rc4+ {[%clk 0:00:12.7]} 66. Kd3 {[%clk 0:00:06.9]} 66... Rf4 {[%clk
0:00:12.4]} 67. Rc2 {[%clk 0:00:06.7]} 67... Rf5 {[%clk 0:00:11]} 68. Rc4 {[%clk
0:00:06.1]} 68... Rg5 {[%clk 0:00:11.3]} 69. Rg4 {[%clk 0:00:04.3]} 69... Rd5+
{[%clk 0:00:10.8]} 70. Ke3 {[%clk 0:00:04.4]} 70... Rh5 {[%clk 0:00:10.9]} 71.
Ke4 {[%clk 0:00:04]} 71... f5+ {[%clk 0:00:10.9]} 72. Kf4 {[%clk 0:00:03.6]}
72... fxg4 {[%clk 0:00:11.8]} 73. fxg4 {[%clk 0:00:03.2]} 73... Ra5 {[%clk
0:00:10.2]} 74. Kf3 {[%clk 0:00:02.6]} 74... g5 {[%clk 0:00:09.4]} 75. g3 {[%clk
0:00:01.8]} 75... Ra3+ {[%clk 0:00:09.2]} 76. Ke4 {[%clk 0:00:02.3]} 76... Rxg3
{[%clk 0:00:09]} 77. Kf5 {[%clk 0:00:03]} 77... Rxh3 {[%clk 0:00:08.8]} 78. Kxg5
{[%clk 0:00:03.6]} 78... Rh1 {[%clk 0:00:09.7]} 79. Kf4 {[%clk 0:00:03.8]} 79...
h3 {[%clk 0:00:10.6]} 80. Kg3 {[%clk 0:00:04.5]} 80... Kg6 {[%clk 0:00:10.1]}
81. Kf2 {[%clk 0:00:04.6]} 81... Kg5 {[%clk 0:00:10.6]} 82. Kg3 {[%clk
0:00:05.5]} 82... Ra1 {[%clk 0:00:06.2]} 83. Kxh3 {[%clk 0:00:05.7]} 83... Ra3+
{[%clk 0:00:06.9]} 84. Kg2 {[%clk 0:00:06.2]} 84... Kxg4 {[%clk 0:00:07.6]} 85.
Kf2 {[%clk 0:00:07.1]} 85... Kf4 {[%clk 0:00:07.1]} 86. Ke2 {[%clk 0:00:08]}
86... Ke4 {[%clk 0:00:07.5]} 87. Kd2 {[%clk 0:00:08.9]} 87... Rd3+ {[%clk
0:00:07.4]} 88. Kc2 {[%clk 0:00:09.8]} 88... Kd4 {[%clk 0:00:08.1]} 89. Kb2
{[%clk 0:00:10.7]} 89... Rc3 {[%clk 0:00:08.6]} 90. Ka2 {[%clk 0:00:11.1]} 90...
Kc4 {[%clk 0:00:09.3]} 91. Kb2 {[%clk 0:00:11.7]} 91... Kb4 {[%clk 0:00:08.7]}
92. Ka2 {[%clk 0:00:11.8]} 92... Rb3 {[%clk 0:00:08.9]} 93. Ka1 {[%clk 0:00:12]}
93... Kc3 {[%clk 0:00:09.5]} 94. Ka2 {[%clk 0:00:12.5]} 94... Kc2 {[%clk
0:00:10.1]} 95. Ka1 {[%clk 0:00:13.3]} 95... Ra3# {[%clk 0:00:11]} 0-1

[Event "Early-Titled-Tuesday-Blitz-February-20-2024"]
[Site "Chess.com"]
[Date "2024.02.20"]
[Round "1"]
[White "karinachess1"]
[Black "Dubs123"]
[Result "1/2-1/2"]
[WhiteElo "2672"]
[BlackElo "2356"]
[TimeControl "180+1"]
[EndTime "8:09:34 PST"]
[Termination "Game drawn by agreement"]

1. d4 {[%clk 0:03:00.9]} 1... Nf6 {[%clk 0:02:36.7]} 2. c4 {[%clk 0:03:00.6]}
2... b6 {[%clk 0:02:32.7]} 3. Nc3 {[%clk 0:03:00.3]} 3... Bb7 {[%clk 0:02:32.6]}
4. f3 {[%clk 0:03:00.5]} 4... e6 {[%clk 0:02:13.9]} 5. e4 {[%clk 0:03:00.4]}
5... d6 {[%clk 0:02:13.1]} 6. Bd3 {[%clk 0:03:00]} 6... Be7 {[%clk 0:02:12.4]}
7. Nge2 {[%clk 0:03:00]} 7... O-O {[%clk 0:02:11.4]} 8. O-O {[%clk 0:03:00.3]}
8... Nbd7 {[%clk 0:02:11.1]} 9. Bg5 {[%clk 0:02:45.8]} 9... h6 {[%clk
0:02:10.2]} 10. Bh4 {[%clk 0:02:46]} 10... c5 {[%clk 0:02:00.9]} 11. Bf2 {[%clk
0:02:41.3]} 11... a6 {[%clk 0:01:55.1]} 12. d5 {[%clk 0:02:37.8]} 12... Ne5
{[%clk 0:01:51.7]} 13. b3 {[%clk 0:02:31.2]} 13... Nxd3 {[%clk 0:01:48.7]} 14.
Qxd3 {[%clk 0:02:32.1]} 14... Nd7 {[%clk 0:01:48.3]} 15. Qc2 {[%clk 0:02:28.8]}
15... Ne5 {[%clk 0:01:42.9]} 16. h3 {[%clk 0:02:27.3]} 16... Bf6 {[%clk
0:01:38.4]} 17. f4 {[%clk 0:02:25.5]} 17... Ng6 {[%clk 0:01:36.9]} 18. dxe6
{[%clk 0:02:16.5]} 18... fxe6 {[%clk 0:01:35.8]} 19. e5 {[%clk 0:02:17]} 19...
Nxe5 {[%clk 0:01:07.6]} 20. fxe5 {[%clk 0:02:15.6]} 20... Bxe5 {[%clk
0:01:08.2]} 21. Qd2 {[%clk 0:02:00.3]} 21... Qe8 {[%clk 0:00:50.9]} 22. Qd3
{[%clk 0:01:50.2]} 22... Rd8 {[%clk 0:00:42.2]} 23. Bg3 {[%clk 0:01:47.1]} 23...
Bf6 {[%clk 0:00:32.8]} 24. Rae1 {[%clk 0:01:39.3]} 24... Qc6 {[%clk 0:00:29.8]}
25. Nf4 {[%clk 0:01:07.1]} 25... Bd4+ {[%clk 0:00:22.4]} 26. Kh2 {[%clk
0:00:41.3]} 26... Rxf4 {[%clk 0:00:21.5]} 27. Rg1 {[%clk 0:00:41.8]} 27... Bxg1+
{[%clk 0:00:20.8]} 28. Rxg1 {[%clk 0:00:42.7]} 28... Rf6 {[%clk 0:00:20.4]} 29.
Bh4 {[%clk 0:00:40.8]} 29... g5 {[%clk 0:00:20.2]} 30. Bg3 {[%clk 0:00:41]}
30... e5 {[%clk 0:00:18.5]} 31. Nd5 {[%clk 0:00:40.5]} 31... Rf7 {[%clk
0:00:17.4]} 32. Qg6+ {[%clk 0:00:40.3]} 32... Kf8 {[%clk 0:00:17.1]} 33. Qxh6+
{[%clk 0:00:39.5]} 33... Ke8 {[%clk 0:00:17.5]} 34. Qe6+ {[%clk 0:00:29.1]}
34... Kf8 {[%clk 0:00:17.1]} 35. h4 {[%clk 0:00:19]} 35... Qd7 {[%clk 0:00:17]}
36. Qh6+ {[%clk 0:00:18.6]} 36... Ke8 {[%clk 0:00:13.7]} 37. Qh8+ {[%clk
0:00:13.1]} 37... Rf8 {[%clk 0:00:13.6]} 38. Nf6+ {[%clk 0:00:13.4]} 38... Ke7
{[%clk 0:00:13.6]} 39. Qg7+ {[%clk 0:00:08.6]} 39... Rf7 {[%clk 0:00:13.3]} 40.
Qxf7+ {[%clk 0:00:08.1]} 40... Kxf7 {[%clk 0:00:14.2]} 41. Nxd7 {[%clk
0:00:08.8]} 41... Rxd7 {[%clk 0:00:15.1]} 42. hxg5 {[%clk 0:00:09.4]} 42... Kg6
{[%clk 0:00:15.6]} 43. Bh4 {[%clk 0:00:09.5]} 43... Rh7 {[%clk 0:00:15.8]} 44.
Kg3 {[%clk 0:00:09.7]} 44... Rf7 {[%clk 0:00:15.5]} 45. Rd1 {[%clk 0:00:09.4]}
45... Rd7 {[%clk 0:00:15.7]} 46. Rd2 {[%clk 0:00:09.4]} 46... Kh5 {[%clk
0:00:15.9]} 47. Kh3 {[%clk 0:00:08.9]} 47... Be4 {[%clk 0:00:15]} 48. g4+ {[%clk
0:00:09.2]} 48... Kg6 {[%clk 0:00:15.6]} 49. Bf2 {[%clk 0:00:08.7]} 49... Bb1
{[%clk 0:00:15]} 50. Bg3 {[%clk 0:00:08.6]} 50... e4 {[%clk 0:00:14.7]} 51.
Rxd6+ {[%clk 0:00:08]} 51... Rxd6 {[%clk 0:00:13.7]} 52. Bxd6 {[%clk 0:00:08.9]}
52... e3 {[%clk 0:00:13.7]} 53. Kg3 {[%clk 0:00:09.2]} 53... Bxa2 {[%clk
0:00:12.8]} 54. Bc7 {[%clk 0:00:09.4]} 54... Bxb3 {[%clk 0:00:12.7]} 55. Bxb6
{[%clk 0:00:10]} 55... Bxc4 {[%clk 0:00:13]} 56. Bxc5 {[%clk 0:00:10.6]} 56...
e2 {[%clk 0:00:13.6]} 57. Kf2 {[%clk 0:00:11.2]} 57... Kxg5 {[%clk 0:00:14.5]}
58. Be7+ {[%clk 0:00:10.7]} 58... Kxg4 {[%clk 0:00:15]} 59. Bb4 {[%clk
0:00:10.4]} 59... Kf5 {[%clk 0:00:15.5]} 60. Ke1 {[%clk 0:00:11]} 60... Ke4
{[%clk 0:00:16.4]} 61. Kd2 {[%clk 0:00:11.6]} 61... Kd4 {[%clk 0:00:16.7]} 62.
Ba5 {[%clk 0:00:11.5]} 62... Kd5 {[%clk 0:00:17.4]} 63. Ke3 {[%clk 0:00:11.4]}
63... Bb5 {[%clk 0:00:18.3]} 64. Be1 {[%clk 0:00:11.4]} 64... Kc6 {[%clk
0:00:19.2]} 65. Kd4 {[%clk 0:00:11.8]} 65... Kb6 {[%clk 0:00:19.4]} 66. Kc3
{[%clk 0:00:12]} 66... a5 {[%clk 0:00:20.3]} 67. Kb3 {[%clk 0:00:12]} 67... Bd3
{[%clk 0:00:19.7]} 68. Ka3 {[%clk 0:00:12]} 68... Kb5 {[%clk 0:00:19.8]} 69. Bf2
{[%clk 0:00:12.2]} 69... a4 {[%clk 0:00:19.3]} 70. Be1 {[%clk 0:00:12.7]} 70...
Bc4 {[%clk 0:00:19.1]} 71. Kb2 {[%clk 0:00:12.8]} 71... Bb3 {[%clk 0:00:19.4]}
72. Ka3 {[%clk 0:00:13.2]} 72... Kc4 {[%clk 0:00:19]} 73. Bf2 {[%clk 0:00:13.3]}
73... Kd3 {[%clk 0:00:19.5]} 74. Kb2 {[%clk 0:00:13]} 74... Kd2 {[%clk
0:00:19.5]} 75. Bh4 {[%clk 0:00:13.4]} 75... Kd3 {[%clk 0:00:16.3]} 76. Ka3
{[%clk 0:00:12.9]} 76... Kc4 {[%clk 0:00:16.8]} 77. Kb2 {[%clk 0:00:13.4]} 77...
Kb4 {[%clk 0:00:16.5]} 78. Be1+ {[%clk 0:00:14]} 78... Kb5 {[%clk 0:00:14]} 79.
Ka3 {[%clk 0:00:14.9]} 79... Kc4 {[%clk 0:00:14.9]} 80. Bh4 {[%clk 0:00:15]}
80... Kd3 {[%clk 0:00:15.8]} 81. Be1 {[%clk 0:00:15.3]} 81... Kc2 {[%clk
0:00:16.7]} 82. Bh4 {[%clk 0:00:15.3]} 82... Kd2 {[%clk 0:00:17]} 83. Kb2 {[%clk
0:00:15.6]} 83... Ke3 {[%clk 0:00:17.7]} 84. Be1 {[%clk 0:00:15.4]} 84... Kf3
{[%clk 0:00:18.6]} 85. Bb4 {[%clk 0:00:15.2]} 85... Kg4 {[%clk 0:00:19.5]} 86.
Ka3 {[%clk 0:00:15.6]} 86... Kh3 {[%clk 0:00:20.4]} 87. Kb2 {[%clk 0:00:16.3]}
87... Kg2 {[%clk 0:00:20.9]} 88. Ka3 {[%clk 0:00:16.8]} 88... Bd1 {[%clk
0:00:19.3]} 89. Kb2 {[%clk 0:00:17.2]} 89... Kf2 {[%clk 0:00:17.6]} 90. Ka3
{[%clk 0:00:17.5]} 90... Ke3 {[%clk 0:00:17.8]} 91. Kb2 {[%clk 0:00:17.7]} 91...
Kd3 {[%clk 0:00:18.3]} 92. Be1 {[%clk 0:00:18.1]} 92... Kc4 {[%clk 0:00:18.5]}
93. Ka3 {[%clk 0:00:18.7]} 93... Kd4 {[%clk 0:00:19]} 94. Kb2 {[%clk 0:00:19.2]}
94... Ke3 {[%clk 0:00:19.9]} 95. Ka3 {[%clk 0:00:19.6]} 95... Kf3 {[%clk
0:00:20.8]} 96. Kb2 {[%clk 0:00:20.2]} 96... Kg2 {[%clk 0:00:21.7]} 97. Ka3
{[%clk 0:00:20.6]} 97... Kf1 {[%clk 0:00:22.6]} 98. Bb4 {[%clk 0:00:21]} 98...
e1=Q {[%clk 0:00:23.4]} 99. Bxe1 {[%clk 0:00:21.2]} 99... Kxe1 {[%clk
0:00:24.3]} 100. Kb2 {[%clk 0:00:21.7]} 100... Kd2 {[%clk 0:00:25.2]} 101. Ka1
{[%clk 0:00:22.3]} 101... Kd3 {[%clk 0:00:25.8]} 102. Kb1 {[%clk 0:00:23.2]}
102... Bb3 {[%clk 0:00:26.3]} 103. Ka1 {[%clk 0:00:24.1]} 103... Kc4 {[%clk
0:00:27]} 104. Kb1 {[%clk 0:00:24.7]} 104... Kb4 {[%clk 0:00:27.9]} 105. Ka1
{[%clk 0:00:25.6]} 105... a3 {[%clk 0:00:28.4]} 106. Kb1 {[%clk 0:00:26.2]}
106... Ba4 {[%clk 0:00:29.3]} 107. Ka1 {[%clk 0:00:27.1]} 107... Bb5 {[%clk
0:00:30.2]} 108. Kb1 {[%clk 0:00:27.7]} 108... Bc6 {[%clk 0:00:31.1]} 109. Ka1
{[%clk 0:00:28.6]} 109... Be4 {[%clk 0:00:32]} 110. Ka2 {[%clk 0:00:28.8]}
110... Bd5+ {[%clk 0:00:31.9]} 111. Ka1 {[%clk 0:00:29.7]} 111... Be4 {[%clk
0:00:32.1]} 112. Ka2 {[%clk 0:00:30.2]} 112... Bf5 {[%clk 0:00:32.5]} 113. Ka1
{[%clk 0:00:31.1]} 113... Bh7 {[%clk 0:00:32.9]} 114. Ka2 {[%clk 0:00:31.6]}
114... Bg8+ {[%clk 0:00:33.8]} 115. Ka1 {[%clk 0:00:32.5]} 115... Bb3 {[%clk
0:00:34.5]} 116. Kb1 {[%clk 0:00:33]} 1/2-1/2

[Event "Early-Titled-Tuesday-Blitz-February-20-2024"]
[Site "Chess.com"]
[Date "2024.02.20"]
[Round "1"]
[White "AlexanderKing"]
[Black "ClaudiaSof"]
[Result "1/2-1/2"]
[WhiteElo "2659"]
[BlackElo "2334"]
[TimeControl "180+1"]
[EndTime "8:09:38 PST"]
[Termination "Game drawn by repetition"]

1. c4 {[%clk 0:03:00.9]} 1... e5 {[%clk 0:02:58.9]} 2. Nc3 {[%clk 0:03:00.2]}
2... Nc6 {[%clk 0:02:59]} 3. Nf3 {[%clk 0:02:58.4]} 3... Bb4 {[%clk 0:02:54.9]}
4. Qc2 {[%clk 0:02:52.2]} 4... a5 {[%clk 0:02:50.6]} 5. e3 {[%clk 0:02:47.4]}
5... Nf6 {[%clk 0:02:48]} 6. a3 {[%clk 0:02:41.9]} 6... Bxc3 {[%clk 0:02:47]} 7.
Qxc3 {[%clk 0:02:42.8]} 7... Qe7 {[%clk 0:02:46.2]} 8. d4 {[%clk 0:02:34.1]}
8... d6 {[%clk 0:02:43]} 9. Be2 {[%clk 0:02:26.1]} 9... O-O {[%clk 0:02:41.6]}
10. b3 {[%clk 0:02:18.9]} 10... Bg4 {[%clk 0:02:40]} 11. d5 {[%clk 0:01:59.1]}
11... Nb8 {[%clk 0:02:37.4]} 12. h3 {[%clk 0:01:59]} 12... Bh5 {[%clk
0:02:29.3]} 13. O-O {[%clk 0:01:37.6]} 13... Nbd7 {[%clk 0:02:26.6]} 14. Bb2
{[%clk 0:01:14.2]} 14... Nc5 {[%clk 0:02:17.2]} 15. Bd1 {[%clk 0:01:09]} 15...
Nfe4 {[%clk 0:02:03.7]} 16. Qe1 {[%clk 0:01:01.7]} 16... Nd3 {[%clk 0:01:55.4]}
17. Qe2 {[%clk 0:00:56]} 17... Nxb2 {[%clk 0:01:45.3]} 18. Qxb2 {[%clk
0:00:56.9]} 18... Bg6 {[%clk 0:01:43.8]} 19. Bc2 {[%clk 0:00:40.8]} 19... Nc5
{[%clk 0:01:40.4]} 20. b4 {[%clk 0:00:35.4]} 20... Nd3 {[%clk 0:01:33.8]} 21.
Qc3 {[%clk 0:00:25.8]} 21... axb4 {[%clk 0:01:29.5]} 22. axb4 {[%clk 0:00:26.7]}
22... Rxa1 {[%clk 0:01:28.6]} 23. Rxa1 {[%clk 0:00:27.6]} 23... e4 {[%clk
0:01:27.1]} 24. Nd2 {[%clk 0:00:18.8]} 24... b6 {[%clk 0:01:19.6]} 25. Bxd3
{[%clk 0:00:09.1]} 25... exd3 {[%clk 0:01:19.1]} 26. Qd4 {[%clk 0:00:09.7]}
26... f5 {[%clk 0:01:13.2]} 27. Qxd3 {[%clk 0:00:06]} 27... f4 {[%clk
0:01:12.7]} 28. e4 {[%clk 0:00:06.3]} 28... f3 {[%clk 0:01:03.2]} 29. g3 {[%clk
0:00:03.3]} 29... Qe5 {[%clk 0:00:59.5]} 30. Re1 {[%clk 0:00:02.8]} 30... Qh5
{[%clk 0:00:50.5]} 31. Kh2 {[%clk 0:00:02.8]} 31... Be8 {[%clk 0:00:49.5]} 32.
Re3 {[%clk 0:00:01.8]} 32... Bd7 {[%clk 0:00:47]} 33. Rxf3 {[%clk 0:00:02.3]}
33... Qxh3+ {[%clk 0:00:40]} 34. Kg1 {[%clk 0:00:02.4]} 34... Ra8 {[%clk
0:00:39.6]} 35. Qf1 {[%clk 0:00:01.7]} 35... Qh5 {[%clk 0:00:37.5]} 36. Re3
{[%clk 0:00:01.5]} 36... Ra2 {[%clk 0:00:34.8]} 37. Qe1 {[%clk 0:00:01.4]} 37...
h6 {[%clk 0:00:28.9]} 38. Nf1 {[%clk 0:00:01.8]} 38... Bg4 {[%clk 0:00:26.3]}
39. e5 {[%clk 0:00:01.6]} 39... Bf3 {[%clk 0:00:19.2]} 40. Nh2 {[%clk 0:00:02]}
40... Bg4 {[%clk 0:00:15.2]} 41. Nxg4 {[%clk 0:00:02.3]} 41... Qxg4 {[%clk
0:00:14.6]} 42. exd6 {[%clk 0:00:02.1]} 42... cxd6 {[%clk 0:00:14.8]} 43. Re8+
{[%clk 0:00:02.4]} 43... Kh7 {[%clk 0:00:14.7]} 44. Qe4+ {[%clk 0:00:02.4]}
44... Qxe4 {[%clk 0:00:14.6]} 45. Rxe4 {[%clk 0:00:03.3]} 45... Rb2 {[%clk
0:00:14]} 46. b5 {[%clk 0:00:02.9]} 46... Rc2 {[%clk 0:00:13.8]} 47. Kg2 {[%clk
0:00:02.5]} 47... Kg8 {[%clk 0:00:13.3]} 48. Re6 {[%clk 0:00:01.8]} 48... Rxc4
{[%clk 0:00:12.8]} 49. Rxd6 {[%clk 0:00:02.7]} 49... Rc5 {[%clk 0:00:13]} 50.
Rd8+ {[%clk 0:00:01.3]} 50... Kf7 {[%clk 0:00:12.2]} 51. d6 {[%clk 0:00:01.2]}
51... Rxb5 {[%clk 0:00:12.1]} 52. Rd7+ {[%clk 0:00:01.9]} 52... Kf6 {[%clk
0:00:11.6]} 53. Rb7 {[%clk 0:00:02.2]} 53... g6 {[%clk 0:00:07.9]} 54. d7 {[%clk
0:00:02.3]} 54... Ke7 {[%clk 0:00:08.1]} 55. Kf3 {[%clk 0:00:03.1]} 55... Rb4
{[%clk 0:00:06.3]} 56. Ke3 {[%clk 0:00:03.3]} 56... h5 {[%clk 0:00:05.1]} 57. f4
{[%clk 0:00:03.6]} 57... Rb3+ {[%clk 0:00:03.8]} 58. Kf2 {[%clk 0:00:03.4]}
58... Rb2+ {[%clk 0:00:04]} 59. Kf3 {[%clk 0:00:03.6]} 59... Rb3+ {[%clk
0:00:04.5]} 60. Kg2 {[%clk 0:00:04.2]} 60... Kd8 {[%clk 0:00:04]} 61. Kh3 {[%clk
0:00:04.3]} 61... Ke7 {[%clk 0:00:03.8]} 62. Kh4 {[%clk 0:00:04.1]} 62... Kd8
{[%clk 0:00:04]} 63. Kg5 {[%clk 0:00:04.4]} 63... Rxg3+ {[%clk 0:00:03.3]} 64.
Kf6 {[%clk 0:00:05]} 64... Rd3 {[%clk 0:00:03.1]} 65. Kxg6 {[%clk 0:00:02.8]}
65... h4 {[%clk 0:00:03.5]} 66. Rxb6 {[%clk 0:00:02.2]} 66... Kxd7 {[%clk
0:00:03.3]} 67. f5 {[%clk 0:00:02.1]} 67... Ke8 {[%clk 0:00:03]} 68. f6 {[%clk
0:00:01.8]} 68... Rg3+ {[%clk 0:00:02.3]} 69. Kf5 {[%clk 0:00:01.7]} 69... h3
{[%clk 0:00:02.7]} 70. Rb8+ {[%clk 0:00:01.7]} 70... Kf7 {[%clk 0:00:02.9]} 71.
Rb7+ {[%clk 0:00:02.6]} 71... Kf8 {[%clk 0:00:02.9]} 72. Rh7 {[%clk 0:00:02.9]}
72... Rf3+ {[%clk 0:00:02.8]} 73. Kg5 {[%clk 0:00:02.6]} 73... Rg3+ {[%clk
0:00:02.9]} 74. Kf4 {[%clk 0:00:02.9]} 74... Rg6 {[%clk 0:00:02.9]} 75. Kf5
{[%clk 0:00:01.9]} 75... Rg3 {[%clk 0:00:02.9]} 76. Rh6 {[%clk 0:00:01.8]} 76...
Kf7 {[%clk 0:00:02.7]} 77. Ke5 {[%clk 0:00:01.5]} 77... Rg5+ {[%clk 0:00:02.2]}
78. Kf4 {[%clk 0:00:01.4]} 78... Rg6 {[%clk 0:00:02.6]} 79. Rxh3 {[%clk
0:00:01.3]} 79... Kxf6 {[%clk 0:00:03.2]} 80. Ke4 {[%clk 0:00:01.4]} 80... Kg7
{[%clk 0:00:03.5]} 81. Kf5 {[%clk 0:00:01.4]} 81... Rf6+ {[%clk 0:00:03.9]} 82.
Ke5 {[%clk 0:00:02.1]} 82... Rg6 {[%clk 0:00:04.3]} 83. Ra3 {[%clk 0:00:02.7]}
83... Kh6 {[%clk 0:00:04]} 84. Kf5 {[%clk 0:00:03.1]} 84... Rg5+ {[%clk
0:00:04.1]} 85. Kf4 {[%clk 0:00:03.8]} 85... Rg6 {[%clk 0:00:04.5]} 86. Ra7
{[%clk 0:00:03.4]} 86... Rf6+ {[%clk 0:00:04.7]} 87. Ke5 {[%clk 0:00:02.8]}
87... Rf8 {[%clk 0:00:04.7]} 88. Ra4 {[%clk 0:00:02.8]} 88... Kg6 {[%clk
0:00:04.2]} 89. Rg4+ {[%clk 0:00:02.8]} 89... Kh5 {[%clk 0:00:04.1]} 90. Rg1
{[%clk 0:00:02.7]} 90... Kh6 {[%clk 0:00:04.4]} 91. Ke6 {[%clk 0:00:02.3]} 91...
Kh5 {[%clk 0:00:04.6]} 92. Rh1+ {[%clk 0:00:02.8]} 92... Kg6 {[%clk 0:00:04.2]}
93. Rg1+ {[%clk 0:00:02.9]} 93... Kh6 {[%clk 0:00:04.4]} 94. Ke5 {[%clk
0:00:03.2]} 94... Kh5 {[%clk 0:00:04.4]} 95. Rg2 {[%clk 0:00:03.1]} 95... Kh6
{[%clk 0:00:04.7]} 96. Rg1 {[%clk 0:00:03.1]} 96... Kh5 {[%clk 0:00:05.2]} 97.
Rg2 {[%clk 0:00:03.5]} 97... Kh6 {[%clk 0:00:05.7]} 98. Rg1 {[%clk 0:00:03.9]}
1/2-1/2